bitfinex-derivatives/quotes_BTCF0:USTF0_20250902
["timestamp","ask_amount","ask_price","bid_price","bid_amount"]
[1756835132370,1.2195483,110980.0,110970.0,0.10455]
[1756835132564,1.2195483,110980.0,110970.0,0.78312532]
[1756835133068,1.58812362,110980.0,110970.0,0.36937]
[1756835133277,1.61057875,110980.0,110970.0,0.36937]
[1756835133767,0.76945875,110980.0,110970.0,0.40455]
[1756835133969,0.87330811,110980.0,110970.0,0.77312532]
[1756835134170,1.24188343,110980.0,110970.0,0.77312532]
[1756835134869,0.87330811,110980.0,110970.0,0.77312532]
[1756835135069,0.87326811,110980.0,110970.0,0.77312532]
[1756835135270,1.24184343,110980.0,110970.0,0.77312532]
[1756835135468,0.87326811,110980.0,110970.0,0.77308636]
[1756835136864,0.87326811,110980.0,110970.0,0.40455]
[1756835137070,1.24180447,110980.0,110970.0,0.40455]
[1756835137474,0.87326811,110980.0,110970.0,0.40455]
[1756835137665,0.03230811,110980.0,110970.0,0.40455]
[1756835137870,0.03230811,110980.0,110970.0,0.77308636]
[1756835138885,0.02345513,110980.0,110970.0,1.02308636]
[1756835139370,0.001,110980.0,110970.0,1.02308636]
[1756835140166,0.01000248,110980.0,110970.0,1.02308636]
[1756835140371,0.001,110980.0,110970.0,1.02408636]
[1756835140577,0.0234776,110980.0,110970.0,1.02408636]
[1756835140780,0.07331097,110990.0,110970.0,1.02408636]
[1756835140974,0.73031679,110990.0,110980.0,0.45417636]
[1756835141275,0.84076,111000.0,110990.0,0.03618]
[1756835141475,0.87245257,111000.0,110990.0,0.08511]
[1756835141682,1.12245257,111000.0,110990.0,0.08511]
[1756835142267,1.12245257,111000.0,110990.0,0.44511]
[1756835142268,0.87245257,111000.0,110990.0,0.44511]
[1756835142470,0.87441257,111000.0,110990.0,0.11511]
[1756835142670,0.87441257,111000.0,110990.0,0.08511]
[1756835142870,0.87441257,111000.0,110980.0,0.01997298]
[1756835143076,0.87441257,111000.0,110980.0,0.41508298]
[1756835143476,0.87541257,111000.0,110990.0,0.08511]
[1756835143877,0.87341257,111000.0,110990.0,0.08511]
[1756835144078,0.87341257,111000.0,110990.0,0.09511]
[1756835144279,0.9453261,111000.0,110990.0,0.09511]
[1756835144780,0.9443261,111000.0,110990.0,0.09511]
[1756835144981,0.9463261,111000.0,110990.0,0.09511]
[1756835145573,0.1056061,111000.0,110990.0,0.09511]
[1756835145772,0.1066061,111000.0,110990.0,0.86254585]
[1756835145978,0.1066061,111000.0,110990.0,0.08511]
[1756835146283,0.1066061,111000.0,110990.0,0.15511]
[1756835146484,0.1066061,111000.0,110990.0,0.46511]
[1756835146783,0.1066061,111000.0,110990.0,0.43511]
[1756835149176,0.03469257,111000.0,110990.0,1.14254585]
[1756835149378,0.02547501,111000.0,110990.0,1.14254585]
[1756835149576,0.003,111000.0,110990.0,1.14254585]
[1756835150881,0.003,111000.0,110990.0,0.43511]
[1756835150882,0.01204268,111000.0,110990.0,0.43511]
[1756835151388,0.003,111000.0,110990.0,0.43511]
[1756835151979,0.003,111000.0,110990.0,1.14254585]
[1756835153982,0.003,111000.0,110990.0,0.68511]
[1756835154192,0.003,111000.0,110990.0,1.14254585]
[1756835155384,0.003,111000.0,110990.0,0.68511]
[1756835155580,0.003,111000.0,110990.0,1.14254585]
[1756835155786,0.003,111000.0,110990.0,1.98274585]
[1756835156884,0.003,111000.0,110990.0,1.14254585]
[1756835157084,0.003,111000.0,110990.0,1.98270585]
[1756835158388,0.003,111000.0,110990.0,1.98262585]
[1756835159302,0.003,111000.0,110990.0,1.73262585]
[1756835160290,0.003,111000.0,110990.0,2.24642585]
[1756835160497,0.003,111000.0,110990.0,2.07271805]
[1756835160807,0.01798119,111020.0,111010.0,0.08511]
[1756835160992,0.01798119,111020.0,111010.0,0.88254585]
[1756835161390,0.01798119,111020.0,111010.0,0.79331746]
[1756835161999,0.02198119,111020.0,111010.0,0.42511]
[1756835162191,0.02198119,111020.0,111010.0,0.79331746]
[1756835162385,0.02498119,111020.0,111010.0,0.42511]
[1756835163798,0.0161964,111020.0,111010.0,0.42511]
[1756835164500,0.0161964,111020.0,111010.0,0.79331746]
[1756835165404,0.007,111020.0,111010.0,0.79331746]
[1756835166493,0.007,111020.0,111010.0,1.63303746]
[1756835166687,0.007,111020.0,111010.0,1.63299746]
[1756835167807,0.007,111020.0,111010.0,0.79331746]
[1756835170005,0.007,111020.0,111010.0,1.63287746]
[1756835171306,0.004,111020.0,111010.0,1.63287746]
[1756835171499,0.00903718,111030.0,111010.0,1.63287746]
[1756835171500,0.00903718,111030.0,111010.0,1.59669746]
[1756835171807,0.02241111,111030.0,111020.0,0.45134746]
[1756835172104,0.02241111,111030.0,111020.0,0.79134746]
[1756835172504,0.02241111,111030.0,111020.0,0.42314]
[1756835173497,0.39061857,111030.0,111020.0,0.42314]
[1756835174407,0.40178781,111030.0,111020.0,0.42314]
[1756835176207,0.65178781,111030.0,111020.0,0.42314]
[1756835176404,0.65178781,111030.0,111020.0,0.38736]
[1756835177011,0.65178781,111030.0,111020.0,0.42314]
[1756835177204,0.28358035,111030.0,111020.0,0.42314]
[1756835177406,0.65178781,111030.0,111020.0,0.42314]
[1756835178398,0.40178781,111030.0,111020.0,0.42314]
[1756835178597,0.03358035,111030.0,111020.0,0.79134746]
[1756835180406,0.02441111,111030.0,111020.0,0.81122037]
[1756835182206,0.02441111,111030.0,111020.0,0.44301291]
[1756835182411,0.02441111,111030.0,111020.0,0.81122037]
[1756835182607,0.02441111,111030.0,111020.0,0.44301291]
[1756835182914,0.02441111,111030.0,111020.0,0.81122037]
[1756835184317,0.39261857,111030.0,111020.0,0.44301291]
[1756835186410,1.01082603,111030.0,111020.0,0.38736]
[1756835186610,1.86822731,111030.0,111020.0,0.38736]
[1756835186809,1.91679979,111030.0,111020.0,0.34]
[1756835187016,1.18038487,111030.0,111020.0,0.34]
[1756835187216,1.91679979,111030.0,111020.0,0.34]
[1756835188121,1.07787979,111030.0,111020.0,0.38736]
[1756835188310,1.91679979,111030.0,111020.0,0.38736]
[1756835189318,1.91679979,111030.0,111020.0,0.36297]
[1756835189517,1.91679979,111030.0,111020.0,0.02]
[1756835191415,1.13181239,111030.0,111020.0,0.06736]
[1756835191720,1.86822731,111030.0,111020.0,0.04297]
[1756835191922,1.86822731,111030.0,111020.0,0.02]
[1756835193321,1.86822731,111030.0,111020.0,0.04297]
[1756835194517,1.86822731,111030.0,111000.0,0.06902021]
[1756835194724,1.25001985,111030.0,111000.0,0.44638021]
[1756835194913,0.36820746,111010.0,111000.0,0.44638021]
[1756835195114,1.22933857,111010.0,111000.0,0.44638021]
[1756835195321,1.20692746,111010.0,111000.0,0.44638021]
[1756835195822,1.22937345,111010.0,111000.0,0.41060021]
[1756835196023,0.39065345,111010.0,111000.0,0.44838021]
[1756835196221,1.22937345,111010.0,111000.0,0.44838021]
[1756835197129,1.22937345,111010.0,111000.0,0.44938021]
[1756835197518,1.22957761,111010.0,111000.0,0.44938021]
[1756835198225,0.86116599,111010.0,111000.0,0.44938021]
[1756835198610,1.22957761,111010.0,111000.0,0.44938021]
[1756835200023,1.22957761,111010.0,111000.0,0.81779183]
[1756835200224,1.22952498,111010.0,111000.0,0.81779183]
[1756835201518,1.22952498,111010.0,111000.0,0.44938021]
[1756835201726,1.22952498,111010.0,111000.0,0.81779183]
[1756835202519,0.39084498,111010.0,111000.0,0.81779183]
[1756835202711,1.22940498,111010.0,111000.0,0.81779183]
[1756835203822,0.86099336,111010.0,111000.0,0.81779183]
[1756835204924,1.22940498,111010.0,111000.0,0.81779183]
[1756835205122,1.22940498,111010.0,111000.0,0.44938021]
[1756835205523,0.86099336,111010.0,111000.0,0.44938021]
[1756835205832,1.22940498,111010.0,111000.0,0.44938021]
[1756835207329,1.20697162,111010.0,111000.0,0.44938021]
[1756835208027,0.83856,111010.0,111000.0,0.40009021]
[1756835208321,1.22946137,111010.0,111000.0,0.40009021]
[1756835208530,1.22930137,111010.0,111000.0,0.44901021]
[1756835211828,1.22930137,111010.0,111000.0,0.333]
[1756835211829,1.86580299,111010.0,111000.0,0.333]
[1756835213134,1.86780299,111010.0,111000.0,0.33]
[1756835213434,1.02940299,111010.0,111000.0,0.33]
[1756835213628,1.86768299,111010.0,111000.0,0.33]
[1756835213933,1.13085975,111010.0,111000.0,0.33]
[1756835214136,1.86768299,111010.0,111000.0,0.33]
[1756835215931,2.23609461,111010.0,111000.0,0.33]
[1756835216438,1.86768299,111010.0,111000.0,0.33]
[1756835216834,1.02940299,111010.0,111000.0,0.33]
[1756835217032,1.86760299,111010.0,111000.0,0.33]
[1756835217630,1.02940299,111010.0,111000.0,0.33]
[1756835217831,1.86756299,111010.0,111000.0,0.33]
[1756835218033,1.86752299,111010.0,111000.0,0.33]
[1756835219037,1.86752299,111010.0,111000.0,0.13]
[1756835219236,1.61752299,111010.0,111000.0,0.13]
[1756835220030,0.77940299,111010.0,111000.0,0.13]
[1756835220234,1.61752299,111010.0,111000.0,0.13]
[1756835220438,0.77940299,111010.0,111000.0,0.13]
[1756835220630,0.77940299,111010.0,111000.0,0.21224]
[1756835220831,0.41099137,111010.0,111000.0,0.59418162]
[1756835221038,1.24907137,111010.0,111000.0,0.47577]
[1756835222335,1.61748299,111010.0,111000.0,0.47577]
[1756835223244,1.24899137,111010.0,111000.0,0.47577]
[1756835223936,1.61740299,111010.0,111000.0,0.15345]
[1756835224139,1.61740299,111010.0,111000.0,0.13]
[1756835224438,2.23581461,111010.0,111000.0,0.13]
[1756835224639,1.86740299,111010.0,111000.0,0.13]
[1756835225339,2.23581461,111010.0,110980.0,0.10221298]
[1756835225542,0.80825324,110990.0,110980.0,0.19787442]
[1756835225742,1.68680476,110990.0,110980.0,0.19787442]
[1756835226639,1.68680476,110990.0,110980.0,0.19987442]
[1756835227037,1.93680476,110990.0,110980.0,0.19987442]
[1756835227642,1.93680476,110990.0,110980.0,0.20087442]
[1756835228360,1.93780476,110990.0,110980.0,0.19887442]
[1756835228552,2.28376638,110990.0,110950.0,0.05154]
[1756835228843,0.36841162,110960.0,110950.0,0.19]
[1756835229037,1.59719299,110960.0,110950.0,0.08784]
[1756835229244,1.59719299,110960.0,110950.0,0.10242]
[1756835229732,0.75931299,110960.0,110950.0,0.10242]
[1756835229933,1.60615587,110960.0,110950.0,0.10542]
[1756835230135,0.76827587,110960.0,110950.0,0.10542]
[1756835230342,1.23774425,110960.0,110950.0,0.35542]
[1756835230537,1.60615587,110960.0,110950.0,0.35542]
[1756835231242,0.03145263,110960.0,110950.0,0.35742]
[1756835231547,1.60619587,110960.0,110950.0,0.35642]
[1756835232148,1.60619587,110960.0,110950.0,0.35542]
[1756835232450,0.76827587,110960.0,110950.0,0.35542]
[1756835232644,1.60615587,110960.0,110950.0,0.35542]
[1756835232841,0.86933263,110960.0,110950.0,0.72383162]
[1756835233047,0.84669396,110960.0,110950.0,0.68687162]
[1756835233252,0.84673396,110960.0,110950.0,0.68687162]
[1756835233546,0.84673396,110960.0,110950.0,0.75383162]
[1756835233847,0.91808947,110960.0,110950.0,0.75383162]
[1756835234347,0.91808947,110960.0,110950.0,0.70542]
[1756835234544,0.91808947,110960.0,110950.0,1.07383162]
[1756835234750,0.07135551,110960.0,110950.0,1.07383162]
[1756835234952,0.01822187,110970.0,110950.0,1.40528324]
[1756835235245,0.18026187,110970.0,110960.0,0.82118324]
[1756835235448,0.18026187,110970.0,110960.0,1.19118324]
[1756835235640,0.73482187,110970.0,110960.0,1.19118324]
[1756835235863,0.02727313,110970.0,110960.0,1.44118324]
[1756835236247,0.01822187,110970.0,110960.0,1.44118324]
[1756835236538,0.01822187,110970.0,110960.0,0.70436]
[1756835236846,0.38663349,110970.0,110960.0,0.70436]
[1756835237150,0.38663349,110970.0,110960.0,0.82277162]
[1756835237949,0.01822187,110970.0,110960.0,0.82277162]
[1756835238546,0.01822187,110970.0,110960.0,1.19318324]
[1756835238745,0.01822187,110970.0,110960.0,1.19418324]
[1756835239443,0.01822187,110970.0,110960.0,0.82577162]
[1756835239953,0.38663349,110970.0,110960.0,0.82577162]
[1756835240252,0.38663349,110970.0,110960.0,0.45577162]
[1756835240453,0.38663349,110970.0,110960.0,0.08736]
[1756835240651,0.38663349,110970.0,110960.0,0.45577162]
[1756835241051,0.38663349,110970.0,110960.0,0.82577162]
[1756835241246,0.38663349,110970.0,110960.0,0.45577162]
[1756835241452,0.38663349,110970.0,110960.0,0.82577162]
[1756835242844,1.22431349,110970.0,110960.0,0.45736]
[1756835243045,1.22431349,110970.0,110960.0,0.82577162]
[1756835243241,1.29578511,110970.0,110960.0,0.82577162]
[1756835244147,0.92737349,110970.0,110960.0,0.82577162]
[1756835244350,1.29578511,110970.0,110960.0,0.82577162]
[1756835245948,1.29578511,110970.0,110960.0,0.08736]
[1756835246153,1.66419673,110970.0,110960.0,0.003]
[1756835246355,1.66419673,110970.0,110960.0,0.0504]
[1756835246551,1.29578511,110970.0,110960.0,0.0504]
[1756835246747,1.29578511,110970.0,110960.0,0.08736]
[1756835247148,1.29578511,110970.0,110960.0,0.08636]
[1756835247348,1.29578511,110970.0,110960.0,0.08436]
[1756835247553,1.29578511,110970.0,110960.0,0.08536]
[1756835247751,1.29578511,110970.0,110960.0,0.0484]
[1756835247951,1.29578511,110970.0,110960.0,0.001]
[1756835248150,1.29678511,110970.0,110960.0,0.0484]
[1756835248455,1.29678511,110970.0,110960.0,0.08436]
[1756835248659,1.29778511,110970.0,110960.0,0.08436]
[1756835249249,0.92937349,110970.0,110960.0,0.0474]
[1756835249453,1.66619673,110970.0,110950.0,0.09894]
[1756835249660,0.73682324,110960.0,110950.0,0.03298]
[1756835249958,0.73682324,110960.0,110950.0,0.01]
[1756835249959,0.02248492,110960.0,110950.0,0.01]
[1756835250149,1.00930816,110960.0,110950.0,0.01]
[1756835250351,1.37771978,110960.0,110940.0,0.02497624]
[1756835250550,0.36841162,110950.0,110940.0,0.08237624]
[1756835250867,1.22841654,110950.0,110940.0,0.11933624]
[1756835251047,1.20593162,110950.0,110940.0,0.11933624]
[1756835251451,1.20593162,110950.0,110940.0,0.12233624]
[1756835252253,1.22841537,110950.0,110940.0,0.12133624]
[1756835252460,1.20593162,110950.0,110940.0,0.12233624]
[1756835252960,0.36841162,110950.0,110940.0,0.12233624]
[1756835253163,0.08969349,110970.0,110950.0,0.09894]
[1756835253459,1.57434324,110960.0,110950.0,0.09894]
[1756835253650,1.59683027,110960.0,110950.0,0.09894]
[1756835253961,0.75931027,110960.0,110950.0,0.09894]
[1756835254156,1.59679027,110960.0,110950.0,0.09894]
[1756835254757,1.59679027,110960.0,110950.0,0.09994]
[1756835255254,0.86000703,110960.0,110950.0,0.81835162]
[1756835255458,0.86000703,110960.0,110950.0,1.06835162]
[1756835255459,0.83752,110960.0,110950.0,1.06835162]
[1756835255659,1.20593162,110960.0,110950.0,0.71835162]
[1756835256863,1.20593162,110960.0,110950.0,0.46835162]
[1756835257564,0.83752,110960.0,110950.0,0.09994]
[1756835258960,0.45838506,110970.0,110960.0,0.03498]
[1756835259166,0.11218421,110970.0,110960.0,0.45247157]
[1756835259369,0.92713349,110970.0,110960.0,1.05247157]
[1756835260071,0.92713349,110970.0,110960.0,0.68378]
[1756835260260,1.29682506,110970.0,110960.0,0.43378]
[1756835260958,1.29682506,110970.0,110960.0,0.08378]
[1756835261165,1.29782506,110970.0,110960.0,0.08378]
[1756835261559,1.29782506,110970.0,110950.0,0.38327157]
[1756835261560,1.66651663,110970.0,110950.0,0.09868]
[1756835261755,0.36869157,110960.0,110950.0,0.09868]
[1756835262667,0.92813349,110970.0,110950.0,0.09868]
[1756835262865,0.94962641,110970.0,110950.0,0.47868]
[1756835263065,0.36869157,110960.0,110950.0,0.09868]
[1756835263869,0.36869157,110960.0,110950.0,0.09968]
[1756835264070,0.36869157,110960.0,110950.0,0.10168]
[1756835264571,0.36869157,110960.0,110950.0,0.45068]
[1756835264767,0.45838506,110970.0,110950.0,0.45168]
[1756835265066,0.92701349,110970.0,110960.0,0.45279157]
[1756835265267,0.92701349,110970.0,110960.0,0.4641]
[1756835265572,0.92701349,110970.0,110960.0,0.83279157]
[1756835266069,0.92697349,110970.0,110960.0,0.83279157]
[1756835267267,0.92697349,110970.0,110960.0,0.4641]
[1756835267466,0.92697349,110970.0,110960.0,0.0841]
[1756835267467,1.29566506,110970.0,110960.0,0.0841]
[1756835267669,1.29566506,110970.0,110960.0,0.05012]
[1756835268067,1.29566506,110970.0,110960.0,0.0851]
[1756835268274,1.29566506,110970.0,110960.0,0.02538]
[1756835268466,1.54566506,110970.0,110960.0,0.001]
[1756835269476,1.63476904,110970.0,110960.0,0.001]
[1756835270964,0.33969349,110970.0,110960.0,0.05012]
[1756835271170,1.17689349,110970.0,110960.0,0.001]
[1756835271874,0.79748904,110970.0,110960.0,0.001]
[1756835272079,1.63468904,110970.0,110960.0,0.001]
[1756835272378,0.79748904,110970.0,110960.0,0.05012]
[1756835272568,1.63464904,110970.0,110960.0,0.05012]
[1756835272773,1.17685349,110970.0,110960.0,0.02538]
[1756835274280,1.17685349,110970.0,110960.0,0.0851]
[1756835274681,0.33969349,110970.0,110960.0,0.3951]
[1756835274882,0.08969349,110970.0,110960.0,0.4251]
[1756835275174,0.08969349,110970.0,110960.0,0.6751]
[1756835275381,0.69549349,110970.0,110960.0,0.6751]
[1756835276174,0.01822187,110970.0,110960.0,0.6751]
[1756835276380,0.01822187,110970.0,110960.0,1.13289555]
[1756835278181,0.62031704,110980.0,110970.0,0.03498]
[1756835278381,0.0737068,110980.0,110970.0,0.42435559]
[1756835278574,0.85518177,110990.0,110970.0,0.38937559]
[1756835278774,0.90518177,110990.0,110980.0,0.0841]
[1756835279080,0.90514177,110990.0,110980.0,0.0841]
[1756835279579,0.90514177,110990.0,110980.0,0.1041]
[1756835279879,0.90514177,110990.0,110980.0,0.4541]
[1756835280179,0.90514177,110990.0,110980.0,0.0841]
[1756835280381,0.91398891,110990.0,110980.0,0.0841]
[1756835280582,0.91398891,110990.0,110980.0,0.4041]
[1756835280777,0.91398891,110990.0,110980.0,0.0841]
[1756835281174,0.91498891,110990.0,110980.0,0.0841]
[1756835281674,0.91598891,110990.0,110980.0,0.0841]
[1756835281880,0.91798891,110990.0,110980.0,0.0841]
[1756835282074,0.99080259,110990.0,110980.0,0.0841]
[1756835282277,0.98880259,110990.0,110970.0,0.10435559]
[1756835282585,0.98980259,110990.0,110970.0,0.42435559]
[1756835282978,0.98980259,110990.0,110970.0,0.12435559]
[1756835283384,0.98980259,110990.0,110970.0,0.46435559]
[1756835283584,0.98880259,110990.0,110970.0,0.46435559]
[1756835283884,0.15176259,110990.0,110980.0,0.03498]
[1756835284189,0.91954082,110990.0,110980.0,0.4541]
[1756835284489,0.91854082,110990.0,110980.0,0.0841]
[1756835284982,0.91854082,110990.0,110980.0,0.3941]
[1756835285379,0.91854082,110990.0,110980.0,0.3961]
[1756835285679,0.08166082,110990.0,110980.0,0.3971]
[1756835285871,0.47588555,111010.0,110980.0,0.3971]
[1756835286072,0.09321931,111010.0,111000.0,0.55650555]
[1756835286276,0.09321931,111010.0,111000.0,0.93650555]
[1756835286277,0.07072541,111010.0,111000.0,0.93650555]
[1756835286575,0.42965843,111020.0,111010.0,0.0841]
[1756835287677,0.43165843,111020.0,111010.0,0.0841]
[1756835288280,0.43365843,111020.0,111010.0,0.0841]
[1756835288480,0.43365843,111020.0,111010.0,0.04912]
[1756835289587,0.50437014,111020.0,111010.0,0.04912]
[1756835291179,0.50437014,111020.0,111010.0,0.08568]
[1756835291180,0.92045014,111020.0,111010.0,0.08568]
[1756835291686,0.92045014,111020.0,111010.0,0.04912]
[1756835292387,0.92045014,111020.0,111010.0,0.08568]
[1756835292789,0.92045014,111020.0,111010.0,0.04912]
[1756835296079,1.40073243,111020.0,111000.0,0.04827]
[1756835296279,0.45779555,111010.0,111000.0,0.04827]
[1756835296596,1.39645295,111020.0,111000.0,0.04827]
[1756835296892,1.39645295,111020.0,111000.0,0.08483]
[1756835297189,1.39445295,111020.0,111000.0,0.08483]
[1756835299297,1.41694225,111020.0,111000.0,0.08483]
[1756835301188,1.41694225,111020.0,111000.0,0.08933]
[1756835301593,0.83632,111010.0,111000.0,0.47307]
[1756835302590,0.1000174,111020.0,111000.0,0.10307]
[1756835302795,0.12252597,111020.0,111010.0,0.03656]
[1756835302995,0.12252597,111020.0,111010.0,0.08483]
[1756835303196,0.95780597,111020.0,111010.0,0.08483]
[1756835303697,0.95780597,111020.0,111010.0,0.04827]
[1756835303898,0.12152597,111020.0,111010.0,0.08483]
[1756835304192,0.12252597,111020.0,111010.0,0.04827]
[1756835304398,0.95880597,111020.0,111010.0,0.08483]
[1756835304696,0.96080597,111020.0,111010.0,0.08483]
[1756835304899,0.96080597,111020.0,111010.0,0.04827]
[1756835305100,0.12452597,111020.0,111010.0,0.04827]
[1756835305392,0.96076597,111020.0,111010.0,0.42483]
[1756835306598,0.9382574,111020.0,111010.0,0.42483]
[1756835307198,0.96074037,111020.0,111010.0,0.42483]
[1756835308503,0.9382574,111020.0,111010.0,0.42483]
[1756835308695,0.96074544,111020.0,111010.0,0.42483]
[1756835309393,0.96074544,111020.0,111010.0,0.08483]
[1756835311798,1.32904217,111020.0,111010.0,0.08483]
[1756835314800,0.96074544,111020.0,111010.0,0.08483]
[1756835315100,0.96074544,111020.0,111010.0,0.45312673]
[1756835315902,0.96074544,111020.0,111010.0,0.08483]
[1756835316204,0.96050544,111020.0,111010.0,0.08483]
[1756835316701,0.96050544,111020.0,111010.0,0.04827]
[1756835317102,0.96050544,111020.0,111010.0,0.08483]
[1756835317400,1.32880217,111020.0,111010.0,0.02348]
[1756835317802,1.32880217,111020.0,111010.0,0.04827]
[1756835318104,1.32880217,111020.0,111010.0,0.08399]
[1756835318304,0.96050544,111020.0,111010.0,0.08399]
[1756835318504,0.96042544,111020.0,111010.0,0.08399]
[1756835319601,1.32871113,111020.0,111010.0,0.45227569]
[1756835319800,1.32867113,111020.0,111010.0,0.45227569]
[1756835319999,0.96038544,111020.0,111010.0,0.47227569]
[1756835320206,0.96038544,111020.0,111010.0,0.77227569]
[1756835320207,1.32867113,111020.0,111010.0,0.77227569]
[1756835321005,0.96038544,111020.0,111010.0,0.77227569]
[1756835321206,1.32867113,111020.0,111010.0,0.77227569]
[1756835321806,0.96038544,111020.0,111010.0,0.77227569]
[1756835322005,1.32867113,111020.0,111010.0,0.77227569]
[1756835323300,0.12450544,111020.0,111010.0,0.77227569]
[1756835323499,0.96030544,111020.0,111010.0,0.77227569]
[1756835324507,0.96030544,111020.0,111010.0,0.40399]
[1756835324694,1.32859113,111020.0,111010.0,0.77227569]
[1756835326105,0.96030544,111020.0,111010.0,0.40399]
[1756835326296,0.96030544,111020.0,111010.0,0.77227569]
[1756835326297,0.96036197,111020.0,111010.0,0.77227569]
[1756835326907,0.49284766,111020.0,111010.0,0.77227569]
[1756835327101,1.32856766,111020.0,111010.0,0.77227569]
[1756835327702,1.32856766,111020.0,111010.0,1.39056138]
[1756835327703,0.04475183,111020.0,111010.0,1.39056138]
[1756835328005,0.02220726,111020.0,111010.0,1.48063678]
[1756835328205,0.02220726,111020.0,111010.0,2.31631678]
[1756835328403,0.02220726,111020.0,111010.0,1.5797454]
[1756835328603,0.02220726,111020.0,111010.0,2.22624138]
[1756835328905,0.02220726,111020.0,111010.0,2.31631678]
[1756835329406,0.02220726,111020.0,111010.0,2.22624138]
[1756835329802,0.02020726,111020.0,111010.0,2.22624138]
[1756835330106,0.01820726,111020.0,111010.0,1.85795569]
[1756835330310,0.01820726,111020.0,111010.0,1.85891569]
[1756835330907,0.01820726,111020.0,111010.0,2.22720138]
[1756835331300,0.01820726,111020.0,111010.0,1.85891569]
[1756835331910,0.01820726,111020.0,111010.0,2.22720138]
[1756835332404,0.01820726,111020.0,111010.0,0.65499]
[1756835332714,0.01820726,111020.0,111010.0,1.02327569]
[1756835333911,0.38649295,111020.0,111010.0,0.65499]
[1756835334105,0.38649295,111020.0,111010.0,1.02327569]
[1756835334308,0.75477864,111020.0,111010.0,0.40499]
[1756835334609,0.26820726,111020.0,111010.0,0.40499]
[1756835334808,1.00477864,111020.0,111010.0,0.77327569]
[1756835335112,0.63649295,111020.0,111010.0,0.77327569]
[1756835339116,0.26820726,111020.0,111010.0,0.77327569]
[1756835339312,0.01820726,111020.0,111010.0,0.77327569]
[1756835340321,0.38649295,111020.0,111010.0,0.77327569]
[1756835340616,0.38649295,111020.0,111010.0,0.40499]
[1756835340816,0.38649295,111020.0,111010.0,0.77327569]
[1756835341212,0.75477864,111020.0,111010.0,0.40499]
[1756835341419,1.00477864,111020.0,111010.0,0.36927]
[1756835341807,1.02729807,111020.0,111010.0,0.36927]
[1756835342622,1.02729807,111020.0,111010.0,0.321]
[1756835342623,1.3773765,111020.0,111010.0,0.321]
[1756835342912,1.00909081,111020.0,111010.0,0.3442]
[1756835343115,1.84441081,111020.0,111010.0,0.36776]
[1756835343710,1.59437081,111020.0,111010.0,0.40348]
[1756835343908,3.09437081,111020.0,111010.0,0.40348]
[1756835344114,2.35783943,111020.0,111010.0,0.40348]
[1756835344319,1.59441081,111020.0,111010.0,0.40348]
[1756835344617,0.39080512,111020.0,111010.0,0.77176569]
[1756835345018,1.20356569,111020.0,111010.0,0.77176569]
[1756835346218,1.20356569,111020.0,111010.0,0.73604569]
[1756835346219,0.83528,111020.0,111010.0,0.73604569]
[1756835346821,1.22193152,111030.0,111020.0,0.03572]
[1756835347020,1.24444682,111030.0,111020.0,0.46076569]
[1756835347322,1.24440682,111030.0,111020.0,0.46076569]
[1756835348120,1.24540682,111030.0,111020.0,0.46076569]
[1756835348530,1.24640682,111030.0,111020.0,0.46076569]
[1756835349436,1.24640682,111030.0,111020.0,0.09248]
[1756835349934,0.41116682,111030.0,111020.0,0.09248]
[1756835350236,1.24636682,111030.0,111020.0,0.46076569]
[1756835350927,1.24636682,111030.0,111020.0,0.09248]
[1756835351128,1.24636682,111030.0,111020.0,0.43248]
[1756835351328,1.24636682,111030.0,111020.0,0.15248]
[1756835351529,1.24636682,111030.0,111020.0,0.11676]
[1756835352233,1.61465251,111030.0,111020.0,0.07]
[1756835352432,1.86465251,111030.0,111020.0,0.07]
[1756835353430,1.61465251,111030.0,111020.0,0.07]
[1756835354531,0.04288113,111030.0,111020.0,0.11779]
[1756835354731,1.24628682,111030.0,111020.0,0.11779]
[1756835354933,1.24628682,111030.0,111020.0,0.15414]
[1756835355333,0.04288113,111030.0,111020.0,0.15414]
[1756835355531,0.41116682,111030.0,111020.0,0.15414]
[1756835355732,1.24624682,111030.0,111020.0,0.15414]
[1756835356534,1.24624682,111030.0,111020.0,0.09472]
[1756835356740,1.61453251,111030.0,111020.0,0.09472]
[1756835356941,1.24624682,111030.0,111020.0,0.09472]
[1756835358241,0.87796113,111030.0,111020.0,0.11779]
[1756835358539,1.24624682,111030.0,111020.0,0.11779]
[1756835359134,1.24620682,111030.0,111020.0,0.15414]
[1756835359840,0.41116682,111030.0,111020.0,0.15414]
[1756835360147,0.87792113,111030.0,111020.0,0.52242569]
[1756835360342,1.24620682,111030.0,111020.0,0.52242569]
[1756835360840,1.24620682,111030.0,111020.0,0.15414]
[1756835363043,1.24612682,111030.0,111020.0,0.15414]
[1756835365745,1.61441251,111030.0,111020.0,0.07]
[1756835367047,1.86441251,111030.0,111020.0,0.07]
[1756835368354,1.12784113,111030.0,111020.0,0.07]
[1756835368549,1.86441251,111030.0,111020.0,0.07]
[1756835368745,1.86429251,111030.0,111020.0,0.11779]
[1756835369146,1.02945251,111030.0,111020.0,0.11779]
[1756835369351,1.86429251,111030.0,111020.0,0.15414]
[1756835369654,1.86429251,111030.0,111020.0,0.09472]
[1756835370042,0.41116682,111030.0,111020.0,0.15414]
[1756835370246,1.24596682,111030.0,111020.0,0.15414]
[1756835373855,1.24596682,111030.0,111020.0,0.11779]
[1756835374052,1.61425251,111030.0,111020.0,0.07]
[1756835374249,1.86425251,111030.0,111020.0,0.07]
[1756835374450,2.2325382,111030.0,111020.0,0.07]
[1756835374645,2.28109548,111030.0,111010.0,0.0045]
[1756835374842,1.40341435,111020.0,111010.0,0.09]
[1756835375047,1.42592965,111020.0,111000.0,0.02009885]
[1756835375350,1.57125138,111010.0,111000.0,0.11009885]
[1756835375550,1.59376668,111010.0,111000.0,0.11009885]
[1756835376056,0.39080099,111010.0,111000.0,0.20907885]
[1756835376249,0.0225153,111010.0,111000.0,0.20907885]
[1756835376448,1.20296569,111010.0,111000.0,0.20907885]
[1756835376648,1.22548099,111010.0,111000.0,0.20907885]
[1756835377256,1.22548099,111010.0,111000.0,0.21007885]
[1756835377753,1.22548099,111010.0,111000.0,0.21207885]
[1756835378250,0.39080099,111010.0,111000.0,0.21207885]
[1756835378450,1.22548099,111010.0,111000.0,0.21207885]
[1756835378658,0.0225153,111010.0,111000.0,0.21207885]
[1756835378957,1.22544099,111010.0,111000.0,0.21207885]
[1756835380359,0.8571553,111010.0,111000.0,0.11309885]
[1756835380555,1.59372668,111010.0,111000.0,0.11309885]